bitfinex-derivatives/quotes_ETHF0:USTF0_20250904
["timestamp","ask_amount","ask_price","bid_price","bid_amount"]
[1756955978840,0.6998,4422.4,4422.3,0.2066]
[1756955979042,0.6998,4422.4,4422.3,0.4436]
[1756955979237,0.4914,4422.4,4422.3,0.6361]
[1756955979937,0.6998,4422.4,4422.3,0.4436]
[1756955980343,0.6998,4422.4,4421.9,4.80968248]
[1756955980542,0.4914,4422.1,4422.0,0.4436]
[1756955980745,0.4914,4422.1,4422.0,0.6361]
[1756955980940,0.2899,4422.4,4422.3,0.3991]
[1756955981243,0.2899,4422.4,4422.3,0.6361]
[1756955981652,0.2899,4422.9,4422.3,0.8799]
[1756955981845,0.4914,4422.9,4422.8,0.2066]
[1756955982043,0.4914,4422.9,4422.8,0.6361]
[1756955982238,0.6981,4422.9,4422.8,0.237]
[1756955983138,0.6981,4422.9,4422.8,0.4269]
[1756955983439,0.6981,4422.9,4422.8,0.6351]
[1756955984139,0.4914,4422.9,4422.8,0.6351]
[1756955984834,0.2899,4422.9,4422.8,0.8789]
[1756955985039,0.6947,4422.9,4422.8,0.4269]
[1756955985339,0.6947,4422.9,4422.4,4.80968248]
[1756955985540,0.3238,4422.5,4422.4,5.20778248]
[1756955985745,0.12,4423.0,4422.4,5.44478248]
[1756955985944,0.12,4423.0,4422.9,5.45158248]
[1756955985945,0.427,4423.0,4422.9,5.45158248]
[1756955986146,0.12,4423.5,4422.9,5.44478248]
[1756955986343,0.1257,4424.5,4423.9,0.1899]
[1756955986344,0.8318,4424.0,4423.9,0.1899]
[1756955986543,0.8318,4424.0,4423.9,0.6341]
[1756955986739,0.8318,4424.0,4423.9,0.4259]
[1756955987141,0.8318,4424.0,4423.4,4.80968248]
[1756955987142,0.307,4423.9,4423.4,4.80968248]
[1756955987342,0.1981,4423.6,4423.5,0.6361]
[1756955987540,0.7118,4423.6,4423.5,0.6361]
[1756955987744,0.7118,4423.6,4423.5,0.1899]
[1756955987941,0.1257,4423.0,4422.8,4.80968248]
[1756955988247,0.7118,4422.9,4422.8,5.20778248]
[1756955988448,0.7118,4422.9,4422.8,4.99958248]
[1756955988646,0.7118,4422.9,4422.8,5.04768248]
[1756955989047,0.7118,4422.9,4422.8,5.23758248]
[1756955989248,0.1257,4423.5,4422.8,5.44578248]
[1756955989450,0.7118,4422.9,4422.8,5.44578248]
[1756955989644,0.7118,4422.9,4422.6,32.57]
[1756955989954,0.8248,4422.9,4422.8,0.4279]
[1756955990254,0.113,4422.9,4422.8,5.68958248]
[1756955991150,0.307,4423.4,4422.8,5.68958248]
[1756955992250,0.113,4423.3,4422.8,5.68958248]
[1756955992561,0.1257,4425.5,4423.3,0.3126]
[1756955992757,0.5305,4424.5,4424.4,0.1899]
[1756955993059,0.5305,4424.5,4424.2,0.238]
[1756955993350,0.5305,4424.5,4423.5,0.429]
[1756955993351,0.1981,4425.0,4424.9,0.7107]
[1756955993552,0.4048,4425.0,4424.9,0.1899]
[1756955993951,0.5305,4425.0,4424.9,0.228]
[1756955994356,0.5305,4425.0,4424.4,0.24]
[1756955994357,5.2740756,4425.0,4424.4,0.24]
[1756955994553,0.8375,4424.5,4424.4,0.24]
[1756955995354,0.8375,4424.5,4423.9,0.3126]
[1756955995554,0.8375,4424.5,4423.9,0.24]
[1756955995555,0.8375,4424.0,4423.9,0.24]
[1756955995753,0.4327,4424.0,4423.5,0.3126]
[1756955995950,0.307,4423.9,4423.6,0.24]
[1756955996156,0.1257,4424.0,4423.5,0.3126]
[1756955996353,0.1257,4424.0,4423.3,4.80968248]
[1756955996674,0.307,4423.9,4423.4,0.24]
[1756955996856,0.1257,4424.0,4423.4,0.24]
[1756955997055,0.307,4423.9,4423.4,0.24]
[1756955997457,0.1257,4424.0,4423.3,4.80968248]
[1756955997458,0.307,4423.4,4423.3,4.80968248]
[1756955997660,0.307,4423.4,4423.3,5.36128248]
[1756955998856,0.5051,4423.4,4423.3,5.75938248]
[1756955999465,0.307,4423.9,4423.3,5.75938248]
[1756955999665,0.1257,4424.0,4423.3,5.75938248]
[1756955999666,0.51751737,4423.8,4423.7,0.7107]
[1756955999966,0.5051,4424.3,4424.2,0.7107]
[1756956000156,1.22934423,4424.3,4424.2,0.4289]
[1756956000357,0.5051,4423.9,4423.8,0.7107]
[1756956000558,0.1981,4423.9,4423.8,0.9497]
[1756956000859,0.4327,4424.5,4423.9,0.3126]
[1756956001058,0.8375,4424.5,4424.4,0.1899]
[1756956001365,1.35496497,4424.5,4424.4,0.1899]
[1756956001561,0.51746497,4424.5,4424.4,4.7107]
[1756956001766,0.5051,4425.4,4425.3,0.1899]
[1756956001953,0.5051,4425.4,4425.3,0.7415]
[1756956002155,0.7118,4425.4,4425.3,0.239]
[1756956002760,0.7118,4425.4,4424.9,0.3126]
[1756956002968,0.7118,4425.4,4425.0,0.239]
[1756956003265,0.7118,4425.3,4425.2,0.1899]
[1756956003654,0.307,4426.4,4424.0,0.1164]
[1756956003854,0.307,4426.4,4424.9,4.80968248]
[1756956003855,0.51687904,4426.3,4424.9,4.80968248]
[1756956004056,0.307,4425.9,4425.0,0.043]
[1756956004259,0.1257,4426.0,4425.0,0.043]
[1756956004260,0.307,4425.7,4425.0,0.043]
[1756956004865,0.307,4425.4,4424.7,0.5516]
[1756956005967,0.307,4425.4,4424.8,0.24]
[1756956006362,0.1257,4425.5,4424.4,4.80968248]
[1756956006363,0.7118,4424.9,4424.4,4.80968248]
[1756956006559,0.5051,4424.6,4424.5,0.7425]
[1756956006765,0.7118,4424.6,4424.5,0.4299]
[1756956007062,0.5051,4424.2,4424.1,0.5025]
[1756956007266,0.7118,4424.2,4424.1,0.1899]
[1756956007463,0.307,4424.5,4424.1,0.6381]
[1756956007660,0.1981,4424.5,4424.4,5.52038248]
[1756956007857,0.7118,4424.5,4424.4,5.20778248]
[1756956008060,0.8375,4424.5,4424.4,5.04968248]
[1756956008262,0.8375,4424.5,4424.4,4.80968248]
[1756956008462,0.8375,4424.5,4424.4,5.04968248]
[1756956008670,0.7118,4424.5,4424.4,5.76038248]
[1756956008864,0.7118,4424.5,4424.4,5.36228248]
[1756956008865,0.307,4424.5,4424.4,5.36228248]
[1756956009368,0.4327,4424.5,4423.9,5.12228248]
[1756956009567,0.307,4424.4,4423.4,0.3126]
[1756956009864,0.307,4424.4,4423.5,0.239]
[1756956010064,0.307,4424.4,4423.4,0.3126]
[1756956010268,0.307,4424.4,4423.5,0.24]
[1756956010466,0.307,4424.4,4423.9,0.3126]
[1756956010669,0.307,4424.4,4424.1,0.3126]
[1756956010870,0.1257,4424.5,4423.6,4.80968248]
[1756956011067,0.307,4424.4,4423.7,0.24]
[1756956011369,0.307,4424.4,4423.6,4.80968248]
[1756956011565,0.307,4424.4,4423.7,0.24]
[1756956011870,0.2978,4423.7,4423.1,0.2899]
[1756956012174,0.1257,4424.0,4423.0,0.1164]
[1756956012175,0.5041,4423.3,4423.2,5.74818248]
[1756956012867,0.5041,4423.3,4423.2,5.74718248]
[1756956013066,0.2978,4424.4,4423.8,0.6985]
[1756956013270,1.02231746,4424.3,4424.2,0.2099]
[1756956013574,1.21271746,4424.3,4424.2,0.4489]
[1756956013764,0.3967,4423.9,4423.8,0.2099]
[1756956013963,0.3967,4423.9,4423.8,0.4489]
[1756956013964,0.6945,4423.9,4423.8,0.4489]
[1756956014564,0.6945,4423.9,4423.8,0.2099]
[1756956014766,0.6945,4423.9,4423.8,0.4489]
[1756956015571,0.5041,4423.9,4423.8,0.9375]
[1756956015873,0.2063,4423.9,4423.8,0.9375]
[1756956016273,0.6945,4423.9,4423.6,0.239]
[1756956016474,0.6945,4423.9,4423.7,0.239]
[1756956016871,0.3967,4423.9,4423.8,0.6985]
[1756956017470,0.6945,4423.9,4423.8,0.4086]
[1756956017670,0.6945,4423.9,4423.8,0.4489]
[1756956018777,0.6945,4423.5,4423.4,0.4998]
[1756956018973,0.6945,4423.5,4423.4,0.9375]
[1756956020974,0.2978,4423.9,4423.4,0.6985]
[1756956021181,0.2063,4423.6,4423.5,0.6476]
[1756956021380,0.5041,4423.6,4423.5,0.6476]
[1756956021578,0.5041,4423.6,4423.5,0.9375]
[1756956022983,0.6945,4423.6,4423.5,0.9375]
[1756956023680,0.6945,4423.6,4423.5,0.4086]
[1756956023878,0.6945,4423.6,4423.5,0.6476]
[1756956024078,0.6945,4423.6,4423.5,0.4086]
[1756956024282,0.6945,4423.6,4423.5,0.6476]
[1756956024784,0.6945,4423.6,4423.5,0.6985]
[1756956024981,0.2978,4424.4,4423.9,0.2899]
[1756956025178,0.5041,4424.4,4424.3,0.6985]
[1756956025486,0.5041,4424.4,4424.3,2.36688897]
[1756956026486,0.6945,4424.4,4424.3,2.36688897]
[1756956027601,0.6945,4424.4,4424.3,0.9365]
[1756956028099,0.2063,4424.4,4424.3,0.9365]
[1756956028296,0.6945,4424.9,4424.8,0.6985]
[1756956028496,0.1257,4425.5,4424.9,0.2899]
[1756956028497,0.2978,4425.4,4424.9,0.2899]
[1756956028695,0.6945,4425.4,4425.3,0.2099]
[1756956028895,0.6945,4425.4,4425.3,0.4479]
[1756956029099,0.6945,4425.4,4425.3,0.238]
[1756956029498,0.3967,4425.4,4425.3,0.238]
[1756956029701,0.6945,4425.4,4425.3,0.238]
[1756956029903,0.6945,4425.4,4425.3,0.4479]
[1756956030900,0.6945,4425.4,4425.3,0.238]
[1756956031798,0.3967,4425.4,4424.5,0.1182]
[1756956031998,0.6945,4425.3,4425.2,0.4998]
[1756956032195,0.6945,4425.3,4425.2,0.7378]
[1756956032400,0.6945,4425.3,4425.2,0.9365]
[1756956033908,0.2978,4425.9,4425.3,0.2899]
[1756956034209,0.6945,4425.4,4425.3,0.6985]
[1756956036205,0.1157,4426.5,4425.4,0.2899]
[1756956036206,0.2978,4426.4,4425.4,0.2899]
[1756956036512,0.2063,4425.7,4425.6,0.6985]
[1756956036707,0.2063,4425.7,4425.6,0.9365]
[1756956036899,0.2978,4425.9,4425.7,0.2899]
[1756956037097,0.1157,4427.0,4425.9,0.2899]
[1756956037303,0.2063,4426.0,4425.9,0.6985]
[1756956037503,0.5041,4426.0,4425.9,0.9365]
[1756956037703,0.4135,4426.5,4426.0,0.4081]
[1756956038010,0.8102,4426.5,4426.4,0.6985]
[1756956038604,0.6945,4426.9,4426.8,0.4086]
[1756956038805,1.21638305,4426.9,4426.6,0.238]
[1756956039006,0.3967,4426.8,4426.7,0.2099]
[1756956039213,0.6945,4426.8,4426.7,0.2099]
[1756956039411,0.6945,4426.8,4426.7,0.4479]
[1756956040112,0.6945,4426.8,4426.2,0.2899]
[1756956040313,0.6945,4426.7,4426.6,0.2099]
[1756956040513,0.6945,4426.7,4426.6,0.6985]
[1756956040905,0.6945,4426.7,4426.6,0.9365]
[1756956042610,0.4783,4427.4,4426.7,0.311]
[1756956042915,0.19,4426.8,4426.7,0.7235]
[1756956043115,0.674,4426.8,4426.7,0.6505]
[1756956043315,0.674,4426.8,4426.7,0.2075]
[1756956043510,0.674,4426.8,4426.7,0.4455]
[1756956043711,0.116,4426.5,4424.4,34.18245929]
[1756956043915,0.116,4427.0,4426.2,0.4125]
[1756956044213,0.674,4426.4,4426.3,0.4125]
[1756956044509,0.674,4427.1,4427.0,0.7235]
[1756956044710,0.3857,4426.9,4426.8,0.238]
[1756956044913,0.674,4426.9,4426.8,0.4455]
[1756956045115,0.674,4426.9,4426.8,0.2075]
[1756956045305,0.674,4426.9,4426.6,0.238]
[1756956045508,0.674,4426.9,4426.5,0.238]
[1756956046216,0.79,4426.5,4426.1,0.238]
[1756956046709,0.5017,4426.0,4425.9,0.2075]
[1756956046912,0.79,4426.0,4425.9,0.2075]
[1756956048306,0.79,4426.0,4425.9,0.4125]
[1756956048507,0.674,4426.0,4425.9,0.7235]
[1756956049515,0.79,4426.0,4425.6,0.311]
[1756956049719,0.116,4426.0,4425.8,0.2075]
[1756956049911,0.116,4426.5,4425.8,0.7235]
[1756956050218,0.79,4426.5,4426.4,0.2075]
[1756956052216,0.79,4426.5,4426.4,0.4125]
[1756956052415,0.79,4426.5,4426.4,0.7235]
[1756956053523,0.674,4426.5,4426.4,0.7235]
[1756956053720,0.4783,4426.9,4426.6,0.311]
[1756956054015,0.4783,4426.9,4426.5,0.117]
[1756956054016,0.674,4426.9,4426.8,0.7235]
[1756956054216,0.674,4426.9,4426.8,0.4125]
[1756956054920,0.674,4426.9,4426.8,0.7235]
[1756956055122,0.2883,4426.8,4426.7,0.238]
[1756956055314,0.19,4426.4,4426.3,6.28028502]
[1756956055509,0.674,4426.4,4426.3,0.9615]
[1756956055714,0.674,4426.4,4426.3,0.7235]
[1756956055916,0.674,4426.4,4426.3,0.9615]
[1756956057218,0.116,4427.0,4426.3,0.9615]
[1756956057219,0.116,4427.0,4426.3,0.6505]
[1756956057422,0.674,4426.9,4426.8,0.4125]
[1756956058027,0.674,4426.9,4426.8,0.2075]
[1756956058823,0.674,4426.9,4426.8,0.7235]
[1756956060821,0.19,4426.9,4426.8,0.7235]
[1756956061023,0.2883,4427.9,4426.9,0.311]
[1756956061224,0.674,4427.4,4427.3,0.4125]
[1756956062131,0.674,4427.4,4427.1,0.237]
[1756956062424,0.116,4427.0,4426.9,0.237]
[1756956062623,0.79,4427.0,4426.9,0.4445]
[1756956063327,0.674,4427.0,4426.9,0.9605]
[1756956063930,0.674,4427.0,4426.9,0.7235]
[1756956064123,0.674,4427.0,4426.9,0.9605]
[1756956066329,0.79,4427.0,4426.9,0.4125]
[1756956066533,0.79,4427.0,4426.9,0.4445]
[1756956066833,0.79,4427.0,4426.9,0.9605]
[1756956066834,0.674,4427.0,4426.9,0.9605]
[1756956067028,0.79,4427.0,4426.9,0.9605]
[1756956067230,0.79,4427.0,4426.9,0.2075]
[1756956067430,0.79,4427.0,4426.9,0.4445]
[1756956067631,0.79,4427.0,4426.8,0.237]
[1756956068222,0.5017,4427.0,4426.4,5.86778502]
[1756956068427,0.3857,4426.6,4426.5,0.6495]
[1756956068628,0.674,4426.6,4426.5,0.7235]
[1756956068827,0.674,4426.6,4426.5,0.9605]
[1756956069440,0.674,4426.6,4426.5,2.58961205]
[1756956070234,0.19,4426.6,4426.5,2.58961205]
[1756956070439,0.2883,4426.9,4426.5,2.70661205]
[1756956070631,0.79,4427.0,4426.9,2.35261205]
[1756956070830,1.31438364,4427.0,4426.9,2.35261205]
[1756956071941,1.31438364,4427.0,4426.9,0.7235]
[1756956072144,1.31438364,4427.0,4426.9,2.58961205]
[1756956072442,1.19838364,4427.0,4426.9,2.58961205]
[1756956073137,1.31758364,4427.0,4426.9,2.58961205]
[1756956073532,1.19838364,4427.0,4426.9,2.58961205]
[1756956073739,0.674,4427.0,4426.9,2.58861205]
[1756956074744,0.674,4427.0,4426.9,2.35261205]
[1756956074943,0.674,4427.0,4426.0,0.2092]
[1756956074944,0.68,4426.1,4426.0,0.2092]
[1756956075150,0.68,4426.0,4425.9,0.9475]
[1756956075341,0.68,4426.0,4425.9,2.57661205]
[1756956075648,0.4899,4426.0,4425.9,2.57661205]
[1756956076145,0.4899,4426.0,4425.9,2.34061205]
[1756956076441,0.198,4426.0,4425.9,2.57661205]
[1756956078645,0.198,4426.0,4425.9,0.9475]
[1756956078844,0.4899,4426.0,4425.9,2.57661205]
[1756956079637,0.68,4426.0,4425.9,2.28361205]
[1756956079848,0.7992,4426.0,4425.9,2.07431205]
[1756956080049,0.1901,4425.2,4425.1,0.7115]
[1756956080346,0.68,4425.2,4425.1,0.4185]
[1756956080542,0.3881,4424.9,4424.4,1.62911205]
[1756956080741,0.68,4424.8,4424.7,0.2092]
[1756956081149,0.68,4424.8,4424.7,0.4452]
[1756956081345,0.68,4424.8,4424.7,0.9475]
[1756956082855,0.68,4424.8,4424.7,2.57661205]
[1756956083252,0.198,4424.8,4424.7,2.57661205]
[1756956083454,0.198,4426.0,4425.9,0.7115]
[1756956083649,0.1192,4426.5,4425.9,2.28361205]
[1756956083844,0.68,4426.1,4426.0,0.5022]
[1756956084045,1.20521469,4426.1,4426.0,0.236]
[1756956084548,0.4111,4426.0,4425.8,0.236]
[1756956084856,0.68,4425.9,4425.8,0.4452]
[1756956085554,0.68,4425.9,4425.8,0.9475]
[1756956087251,0.2919,4425.9,4425.8,0.9475]
[1756956087444,0.4899,4425.9,4425.8,0.9475]
[1756956089254,0.2919,4426.4,4425.8,0.9475]
[1756956089455,0.68,4426.2,4426.1,2.34061205]
[1756956089655,1.20569742,4426.2,4426.1,2.34061205]
[1756956090654,0.91379742,4426.2,4426.1,2.34061205]
[1756956091557,0.91379742,4426.2,4426.1,2.14093786]
[1756956091853,0.3881,4426.2,4426.1,2.14093786]
[1756956092056,0.68,4426.2,4426.1,2.14093786]
[1756956092250,0.198,4426.2,4426.1,2.08393786]
[1756956092445,0.198,4426.2,4426.1,2.37693786]
[1756956093757,0.2919,4426.4,4426.3,0.4185]
[1756956094060,0.68,4426.4,4426.3,0.236]
[1756956094262,0.68,4426.4,4426.3,2.16763786]
[1756956094453,0.68,4426.4,4426.3,2.37693786]
[1756956094651,0.68,4426.4,4426.3,2.14093786]
[1756956094850,0.68,4426.4,4426.3,1.84793786]
[1756956095254,0.2919,4426.4,4426.3,2.14093786]
[1756956095558,0.4899,4426.4,4426.3,2.14093786]
[1756956095760,0.68,4426.4,4426.3,2.14093786]
[1756956096148,1.20679656,4426.4,4426.3,2.14093786]
[1756956096750,1.20679656,4426.4,4426.3,1.63863786]
[1756956097854,1.20679656,4426.4,4425.9,0.293]
[1756956097855,0.1192,4426.0,4425.9,0.293]
[1756956098052,0.7992,4426.0,4425.9,1.93163786]
[1756956098254,0.7992,4426.0,4425.9,1.63863786]
[1756956098853,0.1192,4426.5,4426.0,0.1142]
[1756956099066,1.4328149,4426.4,4426.3,0.7115]
[1756956099261,1.20688489,4426.4,4426.3,2.14093786]
[1756956100764,1.20688489,4426.4,4426.3,1.84793786]
[1756956101956,1.20688489,4426.4,4426.3,1.63863786]
[1756956102161,1.20688489,4426.4,4426.3,2.15113786]
[1756956102657,0.1896,4427.1,4427.0,0.0776]
[1756956102861,0.5024,4427.1,4427.0,1.74303786]
[1756956103358,0.3128,4427.1,4427.0,1.76733786]
[1756956103560,0.7081,4427.1,4427.0,1.50703786]
[1756956103753,0.5127,4427.0,4426.9,1.66543786]
[1756956103958,0.5127,4427.0,4426.9,1.70423786]
[1756956104257,0.5127,4427.0,4426.9,1.46823786]
[1756956104258,0.8255,4427.0,4426.9,1.46823786]
[1756956107363,0.8255,4427.0,4426.9,1.70423786]
[1756956107766,0.8255,4427.0,4426.9,1.74303786]
[1756956112776,0.8255,4427.0,4426.9,0.3136]
[1756956112979,0.8255,4427.0,4426.9,1.74303786]
[1756956114487,1.35162246,4427.0,4426.9,1.74303786]
[1756956116686,1.14592246,4427.0,4426.9,1.74303786]
[1756956119090,1.14592246,4427.0,4426.9,1.50703786]
[1756956119091,0.95632246,4427.0,4426.9,1.50703786]
[1756956119388,0.95632246,4427.0,4426.9,1.76733786]
[1756956120277,1.14592246,4427.0,4426.9,1.74303786]
[1756956120476,1.14592246,4427.0,4426.9,1.50703786]
[1756956120685,1.14592246,4427.0,4426.9,1.74303786]
[1756956121590,1.35162246,4427.0,4426.9,0.0776]
[1756956121791,1.35162246,4427.0,4426.9,1.42943786]
[1756956121993,1.35162246,4427.0,4426.9,1.66543786]
[1756956122490,1.35162246,4427.0,4426.9,1.70423786]
[1756956123185,1.35162246,4427.0,4426.9,1.46823786]
[1756956123387,1.35162246,4427.0,4426.9,1.70423786]
[1756956124089,1.35162246,4427.0,4426.9,1.74303786]
[1756956128192,1.35162246,4427.0,4426.9,1.50703786]
[1756956128394,1.35162246,4427.0,4426.9,1.74303786]
[1756956134695,1.35162246,4427.0,4426.9,1.42943786]
[1756956134998,1.35162246,4427.0,4426.9,1.66543786]
[1756956135297,1.35162246,4427.0,4426.1,0.18342111]
[1756956135497,0.5041,4426.5,4426.4,0.0744]
[1756956135697,1.03022246,4426.5,4426.4,1.50383786]
[1756956135900,1.33742246,4426.5,4426.2,0.236]
[1756956136200,0.6214,4426.0,4425.9,0.0744]
[1756956136501,0.6214,4426.0,4425.9,0.3104]
[1756956136702,0.4259,4426.0,4425.9,0.3336]
[1756956137197,0.4259,4426.0,4425.9,1.76303786]
[1756956138095,0.4259,4426.0,4425.9,1.73983786]
[1756956138297,0.4259,4426.0,4425.9,1.76303786]
[1756956138600,0.8113,4426.0,4425.9,0.0744]
[1756956138906,1.33955276,4426.0,4425.9,1.66543786]
[1756956139697,0.3072,4426.2,4426.1,0.0976]
[1756956139896,0.5027,4426.2,4426.1,0.3104]
[1756956140498,0.6926,4426.2,4426.1,0.3104]
[1756956142595,0.5027,4426.2,4426.1,0.3104]
[1756956142900,0.5027,4426.2,4426.1,0.0744]
[1756956143106,0.5027,4426.2,4426.1,0.3104]
[1756956143703,0.3072,4426.2,4426.1,0.3104]
[1756956143906,0.5027,4426.2,4426.1,0.0744]
[1756956144100,0.6926,4426.2,4426.1,0.3104]
[1756956144301,0.6926,4426.2,4426.1,0.0744]
[1756956144502,0.6926,4426.2,4426.1,0.3104]
[1756956144904,0.6926,4426.2,4426.1,0.0744]
[1756956145109,0.6926,4426.2,4426.1,0.3104]
[1756956145501,0.1187,4426.0,4425.9,1.42943786]
[1756956145702,0.8113,4426.0,4425.9,1.42943786]
[1756956145910,0.8113,4426.0,4425.9,1.66543786]
[1756956146110,0.8113,4426.0,4425.9,1.42943786]
[1756956146309,0.8113,4426.0,4425.9,1.66543786]
[1756956148207,0.8113,4426.0,4425.9,1.46663786]
[1756956148412,0.8113,4426.0,4425.9,1.70263786]
[1756956148613,0.8113,4426.0,4425.9,1.73983786]
[1756956149810,0.8113,4426.0,4425.9,1.66543786]
[1756956150317,0.8113,4426.0,4425.9,1.70263786]
[1756956151410,0.8113,4426.0,4425.9,1.90265723]
[1756956152014,0.8113,4426.0,4425.9,1.93985723]
[1756956152713,0.8113,4426.0,4425.9,1.70385723]
[1756956152911,0.8113,4426.0,4425.9,1.86545723]
[1756956153208,0.8113,4426.0,4425.9,1.90265723]
[1756956155011,0.8113,4426.0,4425.9,1.66665723]
[1756956155211,0.6214,4426.0,4425.9,1.93985723]
[1756956155916,0.6214,4426.5,4426.4,0.0744]
[1756956156115,0.4259,4426.5,4426.4,1.96305723]
[1756956156615,0.4259,4426.5,4426.4,1.93985723]
[1756956156816,0.8113,4426.5,4426.4,1.62945723]
[1756956157011,0.8113,4426.5,4426.4,1.86545723]
[1756956157213,0.1187,4427.5,4427.3,0.0744]
[1756956157214,0.5027,4427.4,4427.3,0.0744]
[1756956157417,0.5027,4427.4,4427.3,1.93985723]
[1756956157418,1.2196099,4427.4,4427.3,1.93985723]
[1756956157615,1.2196099,4427.4,4427.3,1.66665723]
[1756956157812,1.2196099,4427.4,4427.3,0.236]
[1756956158011,1.2196099,4427.4,4427.3,1.86545723]
[1756956160217,0.1187,4427.0,4426.9,0.0372]
[1756956160423,1.03349845,4427.0,4426.9,0.236]
[1756956160717,1.03349845,4427.0,4426.6,1.62945723]
[1756956160923,1.22199845,4426.9,4426.8,0.236]
[1756956161423,0.6926,4426.7,4426.6,1.62945723]
[1756956161621,0.6926,4426.7,4426.6,1.86545723]
[1756956161822,1.22198988,4426.7,4426.6,1.86545723]
[1756956162023,1.22198988,4426.7,4426.6,1.62945723]
[1756956162214,1.22198988,4426.7,4426.6,1.86545723]
[1756956162416,1.22198988,4426.7,4426.6,1.62945723]
[1756956165326,0.52938988,4426.7,4426.6,1.72705723]
[1756956165721,0.3109,4426.9,4426.6,1.72705723]
[1756956165916,0.3109,4426.7,4426.6,1.72705723]
[1756956166124,0.3109,4426.9,4426.6,1.70385723]
[1756956166325,0.5296492,4426.8,4426.7,0.0976]
[1756956167526,0.3109,4427.3,4426.7,0.0744]
[1756956167723,1.20783513,4428.2,4427.2,1.62945723]
[1756956167928,1.20783513,4428.7,4427.9,1.62945723]
[1756956168130,0.6257,4428.5,4428.4,1.62945723]
[1756956169527,0.6257,4428.5,4428.4,1.86545723]
[1756956170126,0.4296,4428.5,4428.4,2.04978652]
[1756956170428,0.3109,4428.4,4427.6,0.22461434]
[1756956170623,0.7059,4428.4,4428.3,1.62945723]
[1756956170826,0.7059,4428.4,4428.3,1.86545723]
[1756956171833,0.507,4428.4,4428.3,1.86545723]
[1756956173225,0.3109,4428.4,4428.3,1.86545723]
[1756956173428,0.1165,4428.5,4428.3,1.86545723]
[1756956173627,0.3109,4428.7,4428.3,1.86545723]
[1756956173628,0.3109,4428.8,4428.3,1.86545723]
[1756956173823,0.3109,4428.8,4428.7,1.62945723]
[1756956175225,0.7059,4428.8,4428.7,1.86445723]
[1756956177120,0.3109,4428.8,4428.7,1.86445723]
[1756956177520,0.507,4428.8,4428.7,1.86445723]
[1756956177923,0.17,4428.9,4428.7,1.86445723]
[1756956178222,0.3109,4430.4,4428.0,0.58813497]
[1756956178431,0.507,4429.4,4428.3,0.40631]
[1756956178936,0.7059,4429.4,4429.3,1.62945723]
[1756956179231,0.3109,4429.4,4429.3,1.86445723]
[1756956180021,0.1165,4430.0,4429.3,1.86445723]
[1756956180223,0.8224,4430.0,4429.9,1.62945723]
[1756956181330,0.8224,4430.0,4429.9,1.86445723]
[1756956183833,0.5115,4430.0,4429.8,1.62945723]
[1756956184130,0.8224,4430.0,4429.9,0.235]
[1756956184321,0.5115,4430.0,4429.9,0.235]
[1756956184933,0.8224,4430.0,4429.9,0.235]
[1756956185620,0.5115,4430.0,4429.9,0.235]
[1756956185828,0.8224,4430.0,4429.9,0.235]
[1756956187233,0.6235,4430.0,4429.9,0.235]
[1756956187535,0.507,4429.9,4429.8,1.62945723]
[1756956187734,0.507,4429.9,4429.8,1.86445723]
[1756956188321,0.7059,4429.9,4429.8,1.86445723]
[1756956190529,0.7059,4429.9,4429.1,32.528]
[1756956190729,0.1961,4429.2,4429.1,32.528]
[1756956190936,0.3109,4429.2,4429.1,32.763]
[1756956192028,0.2984,4429.4,4429.1,36.528]
[1756956192335,0.5069,4429.4,4429.3,1.62945723]
[1756956192534,0.5069,4429.4,4429.3,1.86445723]
[1756956192738,0.1165,4429.5,4429.3,1.86445723]
[1756956193235,0.2984,4429.4,4429.3,1.62945723]
[1756956193638,0.2984,4429.4,4429.3,1.86445723]
[1756956193835,0.5069,4429.4,4429.1,32.528]
[1756956194135,0.5069,4429.4,4429.3,1.86445723]
[1756956194524,0.2984,4429.4,4429.3,1.86445723]
[1756956195036,0.1165,4429.5,4429.3,1.86445723]
[1756956195237,0.4149,4429.5,4429.3,1.86445723]
[1756956195436,0.2984,4429.4,4429.3,1.86445723]
[1756956195936,0.2085,4429.4,4429.3,1.62945723]
[1756956196136,0.5069,4429.4,4429.3,1.86445723]
[1756956196336,0.7066,4429.4,4429.3,1.62945723]
[1756956196541,0.7066,4429.4,4429.3,1.86445723]
[1756956197433,0.5069,4428.4,4428.0,0.18180497]
[1756956197632,0.7066,4428.4,4428.3,1.62945723]
[1756956197834,0.5069,4428.4,4428.3,1.86445723]
[1756956198429,0.5069,4428.4,4428.3,1.62945723]
[1756956198634,0.5069,4428.4,4428.3,1.86445723]
[1756956199247,0.7066,4428.4,4428.3,1.86445723]
[1756956199742,0.7066,4428.4,4428.3,1.62945723]
[1756956199941,0.7066,4428.4,4428.3,1.86445723]
[1756956200339,0.7066,4428.4,4428.3,1.62945723]
[1756956200643,0.5069,4428.4,4428.3,1.86445723]
[1756956201247,0.7066,4428.4,4428.3,1.62945723]
[1756956201536,0.7066,4428.4,4428.3,1.86445723]
[1756956201741,4.52906449,4428.4,4426.7,32.52]
[1756956201941,0.7066,4427.8,4427.7,1.62945723]
[1756956202336,0.7066,4427.8,4427.7,1.86445723]
[1756956202943,0.5069,4427.8,4427.7,1.86445723]
[1756956203538,0.2984,4427.8,4427.7,1.86445723]
[1756956204443,0.5069,4427.8,4427.7,1.86445723]
[1756956204645,0.2984,4427.8,4427.7,1.86445723]
[1756956207344,0.24109132,4428.4,4427.7,1.86445723]
[1756956207545,0.1186,4429.0,4428.9,0.5787]